fUST/lending_fUST_20250529
["ID","MTS","AMOUNT","RATE_DAILY","PERIOD"]
[362820797,1748470249247,-430.0,0.00024109,2]
[362820798,1748470249258,-430.0,0.00024109,2]
[362820799,1748470249270,-248.81130051,0.00024109,2]
[362820800,1748470249280,-243.4625,0.00024109,2]
[362820801,1748470249290,-1325.15,0.00024109,2]
[362820802,1748470249300,-962.47,0.00024109,2]
[362820803,1748470249311,-513.27,0.00024109,2]
[362820804,1748470249321,-1147.31,0.00024109,2]
[362820805,1748470249331,-612.83,0.00024109,2]
[362820806,1748470249342,-500.0,0.0002415,2]
[362820807,1748470249351,-500.0,0.0002415,2]
[362820808,1748470249361,-500.0,0.0002415,2]
[362820809,1748470249371,-500.0,0.0002415,2]
[362820810,1748470249381,-500.0,0.0002415,2]
[362820811,1748470249391,-388.81986765,0.0002415,2]
[362820812,1748470249403,-500.0,0.0002415,2]
[362820813,1748470249415,-965.75,0.00024154,6]
[362820814,1748470249424,-1507.13137551,0.00024164,2]
[362820815,1748470249434,-187.0,0.00024164,7]
[362820816,1748470249445,-171.0,0.00024164,7]
[362820817,1748470249454,-2500.0,0.00024164,2]
[362820818,1748470249464,-3000.0,0.00024164,2]
[362820819,1748470249473,-2500.0,0.00024164,2]
[362820820,1748470249483,-5288.99,0.00024168,15]
[362820821,1748470249493,-11919.93445544,0.00024174,2]
[362820822,1748470249504,-2376.39712422,0.0002421,10]
[362820823,1748470249514,-960.0,0.00024211,2]
[362820824,1748470249524,-708.0,0.00024211,2]
[362820825,1748470249534,-2229.0,0.00024211,2]
[362820826,1748470249544,-405.0,0.00024211,2]
[362820827,1748470249554,-12236.97,0.00024228,2]
[362820828,1748470249564,-499271.75088624,0.00024232,5]
[362820829,1748470249573,-965.75,0.00024254,7]
[362820830,1748470249583,-2042.58,0.00024286,2]
[362820831,1748470249593,-12264.82,0.000243,30]
[362820832,1748470249603,-965.75,0.00024354,4]
[362820833,1748470249612,-3076.58105062,0.00024368,15]
[362820834,1748470249622,-1585.97854,0.00024375,15]
[362820835,1748470249632,-2376.39712422,0.00024383,11]
[362820836,1748470249642,-1325.15,0.00024383,2]
[362820837,1748470249652,-962.47,0.00024383,2]
[362820838,1748470249662,-513.27,0.00024383,2]
[362820839,1748470249672,-1147.31,0.00024383,2]
[362820840,1748470249683,-612.83,0.00024383,2]
[362820841,1748470249692,-6610.72,0.000244,7]
[362820842,1748470249702,-3305.06,0.000244,7]
[362820843,1748470249712,-2884.77833867,0.00024448,3]
[362820844,1748470249720,-965.75,0.00024454,3]
[362820845,1748470249730,-730731.0,0.000245,14]
[362820846,1748470249739,-61958.5378655,0.000245,5]
[362820847,1748470249748,-30227.45747238,0.000245,2]
[362820848,1748470249757,-41011.14664064,0.000245,7]
[362820849,1748470249767,-8678.4081047,0.00024508,2]
[362820850,1748470249777,-5000.0,0.00024508,2]
[362820851,1748470249786,-5000.0,0.00024508,2]
[362820852,1748470249795,-5000.0,0.00024508,2]
[362820853,1748470249805,-5000.0,0.00024508,2]
[362820854,1748470249813,-11919.93445544,0.00024553,2]
[362820855,1748470249822,-965.75,0.00024554,5]
[362820856,1748470249831,-2376.39712422,0.00024555,11]
[362820857,1748470249840,-20054.00296696,0.000246,2]
[362820858,1748470249848,-300.73959146,0.000246,60]
[362820859,1748470249857,-161.57836276,0.0002465,30]
[362820860,1748470249866,-965.75,0.00024654,4]
[362820861,1748470249875,-200.27964434,0.00024657,2]
[362820862,1748470249883,-430.0,0.00024657,2]
[362820863,1748470249892,-347.38219372,0.00024657,2]
[362820864,1748470249901,-500.0,0.00024657,2]
[362820865,1748470249910,-486.925,0.00024657,3]
[362820866,1748470249919,-1325.15,0.00024657,2]
[362820867,1748470249928,-962.47,0.00024657,2]
[362820868,1748470249937,-513.27,0.00024657,2]
[362820869,1748470249947,-1147.31,0.00024657,2]
[362820870,1748470249957,-612.83,0.00024657,2]
[362820871,1748470249966,-271.49009468,0.00024658,30]
[362820872,1748470249977,-2799.0397468,0.00024658,2]
[362820873,1748470249986,-200.0,0.00024658,2]
[362820874,1748470249996,-380.0,0.00024658,2]
[362820875,1748470250006,-200.0,0.00024658,15]
[362820876,1748470250016,-256.05607487,0.00024658,2]
[362820877,1748470250026,-151.0,0.00024658,7]
[362820878,1748470250035,-151.0,0.00024658,7]
[362820879,1748470250045,-151.0,0.00024658,7]
[362820880,1748470250055,-151.0,0.00024658,7]
[362820881,1748470250064,-151.0,0.00024658,7]
[362820882,1748470250076,-151.0,0.00024658,7]
[362820883,1748470250086,-151.0,0.00024658,7]
[362820884,1748470250096,-151.0,0.00024658,7]
[362820885,1748470250106,-285.118628,0.00024658,7]
[362820886,1748470250117,-297.47,0.00024658,7]
[362820887,1748470250126,-500.0,0.00024658,2]
[362820888,1748470250136,-324.08539148,0.00024658,2]
[362820889,1748470250145,-500.0,0.00024658,2]
[362820890,1748470250154,-500.0,0.00024658,2]
[362820891,1748470250164,-500.0,0.00024658,2]
[362820892,1748470250174,-500.0,0.00024658,2]
[362820893,1748470250184,-500.0,0.00024673,2]
[362820894,1748470250193,-1868.99,0.0002468,7]
[362820895,1748470250203,-1700.0,0.0002468,3]
[362820896,1748470250212,-4688.99,0.0002468,15]
[362820897,1748470250221,-200.0,0.00024689,120]
[362820898,1748470250231,-9416.15398233,0.00024694,2]
[362820899,1748470250240,-5000.0,0.00024694,2]
[362820900,1748470250249,-5000.0,0.00024694,2]
[362820901,1748470250258,-5000.0,0.00024694,2]
[362820902,1748470250267,-5000.0,0.00024694,2]
[362820903,1748470250278,-109497.58,0.000247,2]
[362820904,1748470250288,-17678.37,0.000247,2]
[362820905,1748470250297,-42961.44504822,0.000247,2]
[362820906,1748470250307,-370932.07,0.000247,7]
[362820907,1748470250316,-5000.0,0.00024708,2]
[362820908,1748470250326,-5000.0,0.00024708,2]
[362820909,1748470250335,-5000.0,0.00024708,2]
[362820910,1748470250344,-3000.0,0.00024712,2]
[362820911,1748470250353,-3600.0,0.00024712,2]
[362820912,1748470250363,-3000.0,0.00024712,2]
[362820913,1748470250373,-5037.82231777,0.00024716,2]
[362820914,1748470250382,-2376.39712422,0.00024728,11]
[362820915,1748470250391,-9190.6604785,0.00024737,2]
[362820916,1748470250401,-5000.0,0.00024737,2]
[362820917,1748470250414,-5000.0,0.00024737,2]
[362820918,1748470250424,-5000.0,0.00024737,2]
[362820919,1748470250503,-5000.0,0.00024737,2]
[362820920,1748470250513,-5000.0,0.00024737,2]
[362820921,1748470250523,-5000.0,0.00024737,2]
[362820922,1748470250532,-9529.025992,0.00024746,2]
[362820923,1748470250541,-5000.0,0.00024746,2]
[362820924,1748470250550,-5000.0,0.00024746,2]
[362820925,1748470250560,-5000.0,0.00024746,2]
[362820926,1748470250570,-5000.0,0.00024746,2]
[362820927,1748470250579,-965.75,0.00024754,5]
[362820928,1748470250588,-960.56632672,0.00024756,2]
[362820929,1748470250597,-200.0,0.00024767,120]
[362820930,1748470250607,-12866.58544924,0.00024774,2]
[362820931,1748470250617,-795615.95807249,0.0002479,15]
[362820932,1748470250627,-4088.27,0.000248,30]
[362820933,1748470250636,-437.18085791,0.000248,2]
[362820934,1748470250645,-1500.0,0.000248,2]
[362820935,1748470250655,-1500.0,0.000248,2]
[362820936,1748470250665,-1500.0,0.000248,2]
[362820937,1748470250675,-1500.0,0.000248,2]
[362820938,1748470250684,-1500.0,0.000248,2]
[362820939,1748470250694,-1500.0,0.000248,2]
[362820940,1748470250703,-1800.12,0.000248,2]
[362820941,1748470250712,-1500.0,0.000248,2]
[362820942,1748470250722,-1500.0,0.000248,2]
[362820943,1748470250731,-1500.0,0.000248,2]
[362820944,1748470250740,-405449.527158,0.000248,2]
[362820945,1748470250750,-185.6130573,0.000248,2]
[362820946,1748470250760,-250.0,0.00024801,2]
[362820947,1748470250770,-250.0,0.00024802,2]
[362820948,1748470250781,-249.79510384,0.00024803,2]
[362820949,1748470250790,-965.75,0.00024854,2]
[362820950,1748470250800,-200.0,0.00024884,120]
[362820951,1748470250810,-91632.20996114,0.00024887,2]
[362820952,1748470250819,-207416.51430092,0.00024888,2]
[362820953,1748470250829,-1000.17960741,0.00024888,2]
[362820954,1748470250838,-664694.726921,0.000249,2]
[362820955,1748470250848,-2376.39712422,0.000249,12]
[362820956,1748470250858,-204.52,0.000249,31]
[362820957,1748470250867,-204.52,0.000249,31]
[362820958,1748470250877,-204.52,0.000249,31]
[362820959,1748470250887,-204.52,0.000249,31]
[362820960,1748470250897,-204.52,0.000249,31]
[362820961,1748470250907,-204.52,0.000249,31]
[362820962,1748470250916,-204.52,0.000249,31]
[362820963,1748470250926,-204.52,0.000249,31]
[362820964,1748470250935,-204.52,0.000249,31]
[362820965,1748470250955,-204.52,0.000249,31]
[362820966,1748470250966,-204.52,0.000249,31]
[362820967,1748470250976,-204.52,0.000249,31]
[362820968,1748470250984,-204.52,0.000249,31]
[362820969,1748470250991,-204.52,0.000249,31]
[362820970,1748470250998,-204.52,0.000249,31]
[362820971,1748470251006,-204.52,0.000249,31]
[362820972,1748470251016,-200.0,0.00024902,120]
[362820973,1748470251025,-1325.15,0.00024931,2]
[362820974,1748470251034,-962.47,0.00024931,2]
[362820975,1748470251041,-513.27,0.00024931,2]
[362820976,1748470251049,-1147.31,0.00024931,2]
[362820977,1748470251057,-612.83,0.00024931,2]
[362820978,1748470251065,-11919.93445544,0.00024932,2]
[362820979,1748470251074,-965.75,0.00024954,7]
[362820980,1748470251084,-20509.07344563,0.0002498,5]
[362820981,1748470251094,-1109.650102,0.0002498,5]
[362820982,1748470251104,-2000.0,0.0002499,7]
[362820983,1748470251113,-2000.0,0.0002499,7]
[362820984,1748470251123,-2000.0,0.0002499,7]
[362820985,1748470251133,-477.6,0.0002499,7]
[362820986,1748470251143,-500.0,0.0002499,10]
[362820987,1748470251153,-698.20276281,0.0002499,10]
[362820988,1748470251163,-511.42362018,0.0002499,10]
[362820989,1748470251173,-1572.20367062,0.00024999,2]
[362820990,1748470251184,-383431.82196223,0.00025,30]
[362820991,1748470640147,161.250607,0.00013699,2]
[362820994,1748471316764,452.99999981,0.0002,120]
[362821010,1748471432191,-2519.09313035,0.000189,2]
[362821012,1748471432202,-500.0,0.00019177,2]
[362821014,1748471432211,-341.22339146,0.00019177,2]
[362821016,1748471432221,-500.0,0.00019177,2]
[362821018,1748471432230,-500.0,0.00019177,2]
[362821020,1748471432239,-500.0,0.00019177,2]
[362821022,1748471432248,-292.75410442,0.00019177,2]
[362821024,1748471432257,-430.0,0.00019178,2]
[362821026,1748471432266,-430.0,0.00019178,2]
[362821028,1748471432275,-436.38454954,0.00019178,2]
[362821030,1748471432284,-430.0,0.00019178,2]
[362821032,1748471432293,-430.0,0.00019178,2]
[362821034,1748471432303,-430.0,0.00019178,2]
[362821036,1748471432312,-430.0,0.00019178,2]
[362821038,1748471432323,-471.09075428,0.00019178,2]
[362821040,1748471432332,-430.0,0.00019178,2]
[362821042,1748471432341,-430.0,0.00019178,2]
[362821044,1748471432350,-430.0,0.00019178,2]
[362821046,1748471432359,-393.30936602,0.00019178,2]
[362821048,1748471432369,-430.0,0.00019178,2]
[362821050,1748471432378,-430.0,0.00019178,2]
[362821052,1748471432388,-430.0,0.00019178,2]
[362821054,1748471432398,-430.0,0.00019178,2]
[362821056,1748471432407,-430.0,0.00019178,2]
[362821058,1748471432416,-430.0,0.00019178,2]
[362821060,1748471432425,-430.0,0.00019178,2]
[362821062,1748471432435,-430.0,0.00019178,2]
[362821064,1748471432444,-430.0,0.00019178,2]
[362821066,1748471432454,-430.0,0.00019178,2]
[362821068,1748471432463,-430.0,0.00019178,2]
[362821070,1748471432472,-430.0,0.00019178,2]
[362821072,1748471432482,-430.0,0.00019178,2]
[362821074,1748471432491,-430.0,0.00019178,2]
[362821076,1748471432500,-430.0,0.00019178,2]
[362821078,1748471432510,-1000.0,0.00019178,2]
[362821080,1748471432519,-430.0,0.00019178,2]
[362821082,1748471432528,-430.0,0.00019178,2]
[362821084,1748471432537,-430.0,0.00019178,2]
[362821086,1748471432546,-430.0,0.00019178,2]
[362821088,1748471432556,-430.0,0.00019178,2]
[362821090,1748471432565,-430.0,0.00019178,2]
[362821092,1748471432575,-430.0,0.00019178,2]
[362821094,1748471432585,-430.0,0.00019178,2]
[362821096,1748471432594,-532.74,0.00019178,2]
[362821097,1748471432608,-430.0,0.00019178,2]
[362821098,1748471432617,-430.0,0.00019178,2]
[362821099,1748471432626,-391.97137268,0.00019178,2]
[362821100,1748471432635,-404.98352738,0.00019178,2]
[362821101,1748471432644,-430.0,0.00019178,2]
[362821102,1748471432653,-430.0,0.00019178,2]
[362821103,1748471432662,-430.0,0.00019178,2]
[362821104,1748471432670,-384.59265446,0.00019178,2]
[362821105,1748471432679,-450.0,0.00019178,2]
[362821106,1748471432689,-430.0,0.00019178,2]
[362821107,1748471432698,-430.0,0.00019178,2]
[362821108,1748471432707,-430.0,0.00019178,2]
[362821109,1748471432716,-430.0,0.00019178,2]
[362821110,1748471432725,-450.0,0.00019178,2]
[362821111,1748471432734,-430.0,0.00019178,2]
[362821112,1748471432742,-498.40816944,0.00019178,2]
[362821113,1748471432751,-430.0,0.00019178,2]
[362821114,1748471432760,-430.0,0.00019178,2]
[362821115,1748471432768,-400.0,0.00019178,2]
[362821116,1748471432777,-430.0,0.00019178,2]
[362821117,1748471432787,-430.0,0.00019178,2]
[362821118,1748471432796,-430.0,0.00019178,2]
[362821119,1748471432805,-430.0,0.00019178,2]
[362821120,1748471432814,-430.0,0.00019178,2]
[362821121,1748471432823,-430.0,0.00019178,2]
[362821122,1748471432832,-273.93681344,0.00019178,2]
[362821124,1748471432842,-430.0,0.00019178,2]
[362821126,1748471432851,-450.0,0.00019178,2]
[362821128,1748471432860,-430.0,0.00019178,2]
[362821130,1748471432871,-430.0,0.00019178,2]
[362821132,1748471432880,-430.0,0.00019178,2]
[362821134,1748471432890,-430.0,0.00019178,2]
[362821136,1748471432899,-400.0,0.00019178,2]
[362821138,1748471432909,-430.0,0.00019178,2]
[362821140,1748471432918,-430.0,0.00019178,2]
[362821142,1748471432928,-430.0,0.00019178,2]
[362821144,1748471432938,-430.0,0.00019178,2]
[362821145,1748471432948,-430.0,0.00019178,2]
[362821147,1748471432957,-430.0,0.00019178,2]
[362821148,1748471432966,-430.0,0.00019178,2]
[362821150,1748471432975,-560.79,0.00019178,2]
[362821151,1748471432985,-434.01679854,0.00019309,2]
[362821153,1748471432994,-370.0,0.00019452,2]
[362821154,1748471433004,-430.0,0.00019452,2]
[362821155,1748471433013,-430.0,0.00019452,2]
[362821156,1748471433023,-430.0,0.00019452,2]
[362821157,1748471433033,-484.70723995,0.00019452,2]
[362821158,1748471433044,-110.08795904,0.00019452,2]
[362821159,1748471433058,-339.91204096,0.00019452,2]
[362821160,1748471433069,-173.86117326,0.00019452,2]
[362821161,1748471433079,-430.0,0.00019452,2]
[362821162,1748471433090,-532.74,0.00019452,2]
[362821163,1748471433101,-496.2,0.00019452,2]
[362821164,1748471433111,-470.0,0.00019452,2]
[362821165,1748471433121,-430.0,0.00019452,2]
[362821166,1748471433132,-470.0,0.00019452,2]
[362821167,1748471433142,-430.0,0.00019452,2]
[362821168,1748471433152,-369.81651454,0.00019452,2]
[362821169,1748471433162,-330.0,0.00019452,2]
[362821170,1748471433172,-430.0,0.00019452,2]
[362821171,1748471433183,-430.0,0.00019452,2]
[362821172,1748471433192,-430.0,0.00019452,2]
[362821173,1748471433202,-365.61,0.00019452,2]
[362821174,1748471433211,-304.53974767,0.00019452,2]
[362821175,1748471433221,-430.0,0.00019452,2]
[362821176,1748471433231,-430.0,0.00019452,2]
[362821177,1748471433240,-430.0,0.00019452,2]
[362821178,1748471433251,-430.0,0.00019452,2]
[362821179,1748471433260,-430.0,0.00019452,2]
[362821180,1748471433270,-766.07790024,0.000195,2]
[362821181,1748471433280,-709.4058527,0.00019671,2]
[362821182,1748471433289,-430.0,0.00019726,2]
[362821183,1748471433300,-532.74,0.00019726,2]
[362821184,1748471433310,-430.0,0.00019726,2]
[362821185,1748471433321,-234.84542266,0.00019726,2]
[362821186,1748471433330,-430.0,0.00019726,2]
[362821187,1748471433340,-430.0,0.00019726,2]
[362821188,1748471433350,-430.0,0.00019726,2]
[362821189,1748471433359,-430.0,0.00019726,2]
[362821190,1748471433368,-160.0,0.00019765,2]
[362821191,1748471433377,-423.24161968,0.00019765,2]
[362821192,1748471433387,-229.229959,0.00019765,2]
[362821193,1748471433397,-842.5625,0.00019765,2]
[362821194,1748471433406,-212.66609673,0.00019765,2]
[362821195,1748471433415,-160.0,0.00019765,2]
[362821196,1748471433425,-160.0,0.00019765,2]
[362821197,1748471433435,-430.0,0.0002,2]
[362821198,1748471433445,-532.74,0.0002,2]
[362821199,1748471433455,-430.0,0.0002,2]
[362821200,1748471433464,-430.0,0.0002,2]
[362821201,1748471433474,-430.0,0.0002,2]
[362821202,1748471433484,-249.88248989,0.0002,2]
[362821203,1748471433494,-430.0,0.0002,2]
[362821204,1748471433503,-255.01639137,0.00020273,2]
[362821205,1748471433512,-532.74,0.00020273,2]
[362821206,1748471433522,-430.0,0.00020273,2]
[362821207,1748471433532,-430.0,0.00020273,2]
[362821208,1748471433542,-430.0,0.00020273,2]
[362821209,1748471433552,-430.0,0.00020273,2]
[362821210,1748471433563,-532.74,0.00020547,2]
[362821211,1748471433573,-430.0,0.00020547,2]
[362821212,1748471433583,-430.0,0.00020547,2]
[362821213,1748471433594,-430.0,0.00020547,2]
[362821214,1748471433603,-430.0,0.00020547,2]
[362821215,1748471433615,-383.653,0.00020743,2]
[362821216,1748471433624,-644.84591864,0.0002082,2]
[362821217,1748471433634,-500.0,0.0002082,2]
[362821218,1748471433643,-284.495654,0.0002082,2]
[362821219,1748471433655,-500.0,0.0002082,2]
[362821220,1748471433664,-500.0,0.0002082,2]
[362821221,1748471433674,-500.0,0.0002082,2]
[362821222,1748471433683,-500.0,0.0002082,2]
[362821223,1748471433693,-500.0,0.0002082,2]
[362821224,1748471433703,-500.0,0.0002082,2]
[362821225,1748471433713,-373.78390971,0.0002082,2]
[362821226,1748471433723,-500.0,0.0002082,2]
[362821227,1748471433735,-500.0,0.0002082,2]
[362821228,1748471433744,-500.0,0.0002082,2]
[362821229,1748471433753,-500.0,0.0002082,2]
[362821230,1748471433763,-471.39328561,0.0002082,2]
[362821231,1748471433773,-500.0,0.0002082,2]
[362821232,1748471433888,-500.0,0.0002082,2]
[362821233,1748471433899,-500.0,0.0002082,2]
[362821234,1748471433908,-200.0,0.0002082,2]
[362821235,1748471433918,-532.74,0.00020821,2]
[362821236,1748471433927,-430.0,0.00020821,2]
[362821237,1748471433937,-430.0,0.00020821,2]
[362821238,1748471433948,-430.0,0.00020821,2]
[362821239,1748471433959,-430.0,0.00020821,2]
[362821240,1748471433969,-207.4,0.00020899,2]
[362821241,1748471433979,-455.74940926,0.000209,4]
[362821242,1748471433989,-455.74940923,0.00021038,4]
[362821243,1748471433999,-532.74,0.00021095,2]
[362821244,1748471434008,-430.0,0.00021095,2]
[362821245,1748471434018,-430.0,0.00021095,2]
[362821246,1748471434028,-430.0,0.00021095,2]
[362821247,1748471434038,-430.0,0.00021095,2]
[362821248,1748471434049,-600.0,0.00021164,2]
[362821249,1748471434059,-455.74940923,0.00021176,4]
[362821250,1748471434070,-455.74940923,0.00021314,5]
[362821251,1748471434080,-8173.5145799,0.0002133,2]
[362821252,1748471434090,-532.74,0.00021369,2]
[362821253,1748471434100,-430.0,0.00021369,2]
[362821254,1748471434111,-535.48051857,0.00021369,2]
[362821255,1748471434121,-430.0,0.00021369,2]
[362821256,1748471434131,-430.0,0.00021369,2]
[362821257,1748471434142,-455.74940923,0.00021452,5]
[362821258,1748471434152,-500.0,0.00021578,2]
[362821259,1748471434164,-500.0,0.00021578,2]
[362821260,1748471434177,-455.74940923,0.0002159,5]
[362821261,1748471434188,-537.33165271,0.00021612,2]
[362821262,1748471434198,-500.0,0.00021612,2]
[362821263,1748471434208,-600.0,0.00021612,2]
[362821264,1748471434219,-501.39450779,0.00021612,2]
[362821265,1748471434229,-500.0,0.00021612,2]
[362821266,1748471434238,-532.74,0.00021643,2]
[362821267,1748471434249,-430.0,0.00021643,2]
[362821268,1748471434259,-430.0,0.00021643,2]
[362821269,1748471434269,-202.09678985,0.00021643,2]
[362821270,1748471434278,-273.56,0.0002169,10]
[362821271,1748471434288,-311.61,0.0002169,10]
[362821272,1748471434297,-259.68,0.0002169,10]
[362821273,1748471434307,-91311.9371249,0.000217,2]
[362821274,1748471434317,-455.74940923,0.00021728,5]
[362821275,1748471434327,-405.0,0.00021778,2]
[362821276,1748471434337,-30156.07857229,0.000218,3]
[362821277,1748471434347,-430.88019917,0.00021817,2]
[362821278,1748471434357,-455.74940923,0.00021866,6]
[362821279,1748471434369,-2201.88,0.000219,2]
[362821280,1748471434379,-532.74,0.00021917,2]
[362821281,1748471434388,-430.0,0.00021917,2]
[362821282,1748471434398,-3639.34,0.00021917,2]
[362821283,1748471434408,-367.77629836,0.00021917,2]
[362821284,1748471434419,-2000.0,0.00022,2]
[362821285,1748471434428,-2000.0,0.00022,2]
[362821286,1748471434438,-2000.0,0.00022,2]
[362821287,1748471434447,-156.2,0.00022,2]
[362821288,1748471434457,-21984.38615066,0.00022,2]
[362821289,1748471434466,-455.74940923,0.00022003,6]
[362821290,1748471434476,-9894.29235297,0.00022012,2]
[362821291,1748471434485,-12500.0,0.00022033,2]
[362821292,1748471434494,-12500.0,0.00022041,2]
[362821293,1748471434503,-12500.0,0.0002205,2]
[362821294,1748471434513,-12500.0,0.00022059,2]
[362821295,1748471434522,-12500.0,0.00022068,2]
[362821296,1748471434531,-516.66394945,0.00022073,2]
[362821297,1748471434541,-500.0,0.00022073,2]
[362821298,1748471434551,-12500.0,0.00022077,2]
[362821299,1748471434560,-12500.0,0.00022085,2]
[362821300,1748471434570,-12500.0,0.00022094,2]
[362821301,1748471434580,-12500.0,0.00022103,2]
[362821302,1748471434589,-6073.1997351,0.00022112,2]
[362821307,1748471438126,-300.0,0.00022112,2]
[362821308,1748471438139,-1095.46479607,0.00022112,2]
[362821309,1748471438207,-337.02880205,0.00022112,2]
[362821311,1748471438219,-4694.30666678,0.00022112,2]
[362821312,1748471438228,-12500.0,0.00022121,2]
[362821313,1748471438237,-12500.0,0.00022129,2]
[362821314,1748471438247,-12500.0,0.00022138,2]
[362821315,1748471438257,-455.74940923,0.00022141,6]
[362821316,1748471438268,-12500.0,0.00022147,2]
[362821317,1748471438277,-12500.0,0.00022156,2]
[362821318,1748471438287,-1000.0,0.0002216,2]
[362821319,1748471438296,-1200.0,0.0002216,2]
[362821320,1748471438306,-12500.0,0.00022165,2]
[362821321,1748471438315,-12500.0,0.00022173,2]
[362821322,1748471438325,-12500.0,0.00022182,2]
[362821323,1748471438334,-3801.40844749,0.00022191,2]
[362821324,1748471438343,-12500.0,0.00022191,2]
[362821325,1748471438352,-532.74,0.00022191,2]
[362821326,1748471438361,-430.0,0.00022191,2]
[362821327,1748471438370,-2222.63,0.000222,7]
[362821328,1748471438380,-10452.07,0.000222,2]
[362821329,1748471438389,-191060.78,0.000222,7]
[362821330,1748471438398,-54748.79,0.000222,2]
[362821331,1748471438407,-600.0,0.0002226,2]
[362821332,1748471438416,-215.0738,0.00022268,2]
[362821333,1748471438426,-455.74940923,0.00022279,6]
[362821334,1748471438435,-174.05123,0.00022283,2]
[362821335,1748471438444,-455.74940923,0.00022417,7]
[362821336,1748471438453,-532.74,0.00022465,2]
[362821337,1748471438462,-430.0,0.00022465,2]
[362821338,1748471438471,-455.74940923,0.00022555,7]
[362821339,1748471438480,-430.88019916,0.00022563,2]
[362821340,1748471438489,-1000.0,0.00022621,2]
[362821341,1748471438498,-455.74940923,0.00022693,7]
[362821342,1748471438507,-1500.0,0.00022708,2]
[362821343,1748471438516,-1344.62490624,0.00022708,2]
[362821344,1748471438526,-532.74,0.00022739,2]
[362821345,1748471438535,-492.79023982,0.00022739,2]
[362821346,1748471438544,-455.74940923,0.00022831,8]
[362821347,1748471438554,-151.99151904,0.000229,2]
[362821348,1748471438563,-7278.68,0.0002296,2]
[362821349,1748471438572,-455.74940923,0.00022969,8]
[362821350,1748471438581,-2000.0,0.00023,2]
[362821351,1748471438590,-2000.0,0.00023,2]
[362821352,1748471438600,-2000.0,0.00023,2]
[362821353,1748471438610,-327.83768539,0.00023,2]
[362821354,1748471438619,-160.0,0.00023,3]
[362821355,1748471438629,-532.74,0.00023013,2]
[362821356,1748471438638,-364.1099385,0.00023096,2]
[362821357,1748471438647,-364.1099385,0.00023096,2]
[362821358,1748471438656,-455.74940923,0.00023107,8]
[362821359,1748471438665,-1500.0,0.00023168,2]
[362821360,1748471438675,-455.74940923,0.00023245,8]
[362821361,1748471438684,-1506.98858576,0.00023256,2]
[362821362,1748471438697,-532.74,0.00023287,2]
[362821363,1748471438711,-10452.07,0.000233,2]
[362821364,1748471438724,-10364.30950839,0.000233,7]
[362821369,1748471443329,-216.4,0.0002329,10]
[362821370,1748471443341,-180696.47049161,0.000233,7]
[362821371,1748471443353,-430.88019916,0.00023309,2]
[362821372,1748471443365,-600.0,0.00023356,2]
[362821373,1748471443376,-153.0,0.0002337,2]
[362821374,1748471443387,-153.0,0.0002337,2]
[362821375,1748471443398,-153.0,0.0002337,2]
[362821376,1748471443408,-153.0,0.0002337,2]
[362821377,1748471443419,-455.74940923,0.00023383,9]
[362821379,1748471443431,-9894.29235296,0.00023456,2]
[362821382,1748471443443,-500.0,0.0002346,2]